Workbook

Sheet Sheet2
A1: 安庆职业技术学院2025年春季1+X证书申报考核情况一览表（截止至2025年9月12日）
A2: 序号 | B2: 院系 | C2: 申报试点证书及等级 | D2: 主要 负责人 | E2: 具体 负责人 | F2: 申报试点学生规模 （人） | G2: 报名考试 人数（人） | H2: 证书报考率 | I2: 参加考试 人数（人） | J2: 证书考核率 | K2: 考试通过人数（人） | L2: 合格率（%） | M2: 备注
A3: 1 | B3: 农林与服装学院 | C3: 服装陈列设计、中级 | D3: 李进恩 | E3: 陈婷婷 | F3: 94 | G3: 94 | H3: =G3/F3 -> 100.00% | I3: 94 | J3: =I3/G3 -> 100.00% | M3: 成绩登记中
A4: 2 | C4: 家庭农场粮食生产经营、中级 | D4: 李进恩 | E4: 李萍、余碧霞 | F4: 100 | G4: 95 | H4: 95.00% | I4: 95 | J4: 100.00% | K4: 95 | L4: =K4/I4 -> 100.00%
A5: 3 | C5: 设施蔬菜生产、中级 | D5: 李进恩 | E5: 徐基艳 | F5: 50 | G5: 50 | H5: 100.00% | I5: 50 | J5: 100.00% | K5: 50 | L5: 100.00%
C6: 合计 | F6: =SUM(F3:F5) -> 244 | G6: 239 | H6: 97.95% | I6: 239 | J6: 100.00% | K6: =SUM(K3:K5) -> 145 | L6: 60.67%
A7: 4 | B7: 建筑工程学院 | C7: 建筑工程识图 初级 | D7: 陈月萍 | E7: 方晓红 | F7: 15 | G7: 15 | H7: 100.00% | I7: 15 | J7: 100.00% | K7: 15 | L7: 100.00%
A8: 5 | C8: 建筑工程识图 中级 | D8: 陈月萍 | E8: 方晓红 | F8: 40 | G8: 40 | H8: 100.00% | I8: 40 | J8: 100.00% | K8: 39 | L8: 97.50%
A9: 6 | C9: 室内设计 初级 | D9: 陈月萍 | E9: 黄妍 | F9: 65 | G9: 65 | H9: 100.00% | I9: 57 | J9: 87.69% | K9: 52 | L9: 91.23%
A10: 7 | C10: 工程造价数字化应用 中级 | D10: 陈月萍 | E10: 汪扬 | F10: 50 | G10: 50 | H10: 100.00% | I10: 50 | J10: 100.00% | K10: 41 | L10: 82.00%
C11: 合计 | F11: =SUM(F7:F10) -> 170 | G11: =SUM(G7:G10) -> 170 | H11: =G11/F11 -> 100.00% | I11: =SUM(I7:I10) -> 162 | J11: =I11/G11 -> 95.29% | K11: =SUM(K7:K10) -> 147 | L11: =K11/I11 -> 90.74%
A12: 8 | B12: 现代商务学院 | C12: 物流管理、中级 | D12: 金启胜 | E12: 段春晖 | F12: 80 | G12: 80 | H12: 100.00% | I12: 79 | J12: 98.75% | K12: 79 | L12: 100.00%
A13: 9 | C13: 新媒体营销 中级 | D13: 金启胜 | E13: 李婷 | F13: 50 | G13: 50 | H13: 100.00% | I13: 50 | J13: 100.00% | K13: 50 | L13: 100.00%
C14: 合计 | F14: =SUM(F12:F13) -> 130 | G14: =SUM(G12:G13) -> 130 | H14: 100.00% | I14: =SUM(I12:I13) -> 129 | J14: 99.23% | K14: =SUM(K12:K13) -> 129 | L14: 100.00%
A15: 10 | B15: 信息技术学院 | C15: WPS办公应用 中级 | D15: 疏国会 | E15: 陈小祥 | F15: 50
A16: 11 | C16: web前端开发 | D16: 疏国会 | E16: 陈小祥 | F16: 50 | G16: 50 | H16: 100.00% | I16: 44 | J16: 88.00% | K16: 44 | L16: 100.00%
A17: 12 | C17: 网络安全应急响应 中级 | D17: 疏国会 | E17: 熊祖涛 | F17: 50 | G17: 50 | H17: 100.00% | I17: 50 | J17: 100.00% | K17: 47 | L17: 94.00%
A18: 13 | C18: 融媒体内容制作、中级 | D18: 疏国会 | E18: 齐红 | F18: 50
A19: 14 | C19: 动画制作、初级 | D19: 疏国会 | E19: 陶建林 | F19: 30
A20: 15 | C20: 动画制作、中级 | D20: 疏国会 | E20: 陶建林 | F20: 20
A21: 16 | C21: JavaWeb应用开发、中级 | D21: 疏国会 | E21: 熊祖涛 | F21: 50 | G21: 50 | H21: 100.00% | I21: 50 | J21: 100.00% | K21: 48 | L21: 96.00%
C22: 合计 | F22: =SUM(F15:F21) -> 300 | G22: =SUM(G15:G21) -> 150 | H22: =G22/F22 -> 50.00% | I22: =SUM(I15:I21) -> 144 | J22: 96.00% | K22: =SUM(K15:K21) -> 139 | L22: 96.53%
A23: 17 | C23: 工业机器人应用编程、中级 | D23: 刘磊 | E23: 夏燕玲 | F23: 20 | G23: 20 | H23: =G23/F23 -> 100.00% | I23: 20 | J23: =I23/G23 -> 100.00% | K23: 18 | L23: =K23/I23 -> 90.00%
C24: 合计 | F24: =SUM(F23:F23) -> 20 | G24: 20 | H24: =G24/F24 -> 100.00% | I24: 20 | J24: =I24/G24 -> 100.00% | K24: 18 | L24: =K24/I24 -> 90.00%
C25: 总计 | F25: =F6+F11+F14+F22+F24 -> 864 | G25: =G6+G11+G14+G22+G24 -> 709 | H25: =G25/F25 -> 82.06% | I25: 694 | J25: =I25/G25 -> 97.88% | K25: 578 | L25: =K25/I25 -> 83.29%
